fUST/lending_fUST_20250623
["ID","MTS","AMOUNT","RATE_DAILY","PERIOD"]
[367060936,1750641050451,-460.0,0.00022191,2]
[367060937,1750641050461,-460.0,0.00022191,2]
[367060938,1750641050471,-966.27,0.00022191,2]
[367060939,1750641050481,-460.0,0.00022191,2]
[367060940,1750641050490,-724.71,0.00022191,2]
[367060941,1750641050500,-460.0,0.00022191,2]
[367060942,1750641050510,-460.0,0.00022191,2]
[367060943,1750641050520,-614.59,0.00022191,2]
[367060944,1750641050530,-1716.04,0.00022191,2]
[367060945,1750641050540,-367.43435798,0.00022191,2]
[367060946,1750641050550,-460.0,0.00022191,2]
[367060947,1750641050561,-460.0,0.00022191,2]
[367060948,1750641050572,-460.0,0.00022191,2]
[367060949,1750641050808,-311.45145267,0.00022191,2]
[367060950,1750641050822,-148.54854733,0.00022191,2]
[367060951,1750641050832,-460.0,0.00022191,2]
[367060952,1750641050842,-983.72,0.00022191,2]
[367060953,1750641050852,-479.72,0.00022191,2]
[367060954,1750641050862,-460.16649552,0.00022191,2]
[367060955,1750641050872,-460.0,0.00022191,2]
[367060956,1750641050882,-460.0,0.00022191,2]
[367060957,1750641050891,-460.0,0.00022191,2]
[367060958,1750641050901,-508.05812694,0.00022191,2]
[367060959,1750641050910,-460.0,0.00022191,2]
[367060960,1750641050920,-460.0,0.00022191,2]
[367060961,1750641050936,-709.93,0.00022191,2]
[367060962,1750641050945,-786.92,0.00022191,2]
[367060963,1750641050956,-460.0,0.00022191,2]
[367060964,1750641050965,-3063.12,0.00022191,2]
[367060965,1750641050974,-460.0,0.00022191,2]
[367060966,1750641050984,-460.0,0.00022191,2]
[367060967,1750641050994,-460.0,0.00022191,2]
[367060968,1750641051003,-440.81227558,0.00022191,2]
[367060969,1750641051014,-550.34,0.00022191,2]
[367060970,1750641051023,-460.0,0.00022191,2]
[367060971,1750641051033,-460.0,0.00022191,2]
[367060972,1750641051043,-460.0,0.00022191,2]
[367060973,1750641051053,-460.0,0.00022191,2]
[367060974,1750641051063,-460.0,0.00022191,2]
[367060975,1750641051073,-569.28161616,0.00022191,2]
[367060976,1750641051084,-460.0,0.00022191,2]
[367060977,1750641051093,-872.88,0.00022191,2]
[367060978,1750641051104,-460.0,0.00022191,2]
[367060979,1750641051113,-1903.82,0.00022191,2]
[367060980,1750641051123,-277.51774492,0.00022191,2]
[367060981,1750641051132,-413.78383908,0.00022191,2]
[367060982,1750641051142,-460.0,0.00022191,2]
[367060983,1750641051152,-720.77,0.00022191,2]
[367060984,1750641051162,-855.44,0.00022191,2]
[367060985,1750641051171,-460.0,0.00022191,2]
[367060986,1750641051181,-460.0,0.00022191,2]
[367060987,1750641051190,-110.54103229,0.00022191,2]
[367060988,1750641062107,150.0,0.00022216,30]
[367060989,1750641191930,150.0,0.00020072,2]
[367060992,1750641526791,179.59292401,0.00019936,2]
[367060993,1750641536420,1000.0,0.00025,60]
[367060994,1750641719640,622.38929329,0.000201,2]
[367060995,1750641727753,585.87716642,0.00025,60]
[367060996,1750641886356,176.815034,0.0002496,30]
[367060997,1750642037132,-300.0,0.0002055,2]
[367060998,1750642037153,-231.31725366,0.0002055,2]
[367060999,1750642038131,-68.68274634,0.0002055,2]
[367061000,1750642038154,-1200.0,0.00020551,2]
[367061001,1750642038175,-300.0,0.00020551,2]
[367061002,1750642038197,-300.0,0.00020551,2]
[367061003,1750642038221,-22954.02730987,0.00020552,2]
[367061004,1750642039402,203.958834,0.00013699,2]
[367061006,1750642115916,17710.25551686,0.00024,60]
[367061007,1750642116780,504.15,0.000195,2]
[367061014,1750642145102,-203.958834,0.00020187,2]
[367061015,1750642145123,-1945.97269013,0.00020552,2]
[367061016,1750642145142,-181.899762,0.00020557,2]
[367061017,1750642145161,-377.40230533,0.0002069,2]
[367061018,1750642145180,-2131.2766115,0.00020911,2]
[367061019,1750642145200,-255.0,0.0002101,2]
[367061020,1750642145219,-255.0,0.00021015,2]
[367061021,1750642145238,-225.62565009,0.0002102,2]
[367061022,1750642146097,-144.97972901,0.0002102,2]
[367061032,1750642203522,184.87816984,0.000215,2]
[367061034,1750642232015,-699.856,0.00021716,2]
[367061035,1750642232027,-12897.69964471,0.00021716,2]
[367061061,1750642237200,150.0,0.00021791,30]
[367061066,1750642237941,-515.46390594,0.00021715,2]
[367061067,1750642237950,-509.27082103,0.00021715,2]
[367061068,1750642237960,-544.03437919,0.00021715,2]
[367061070,1750642237971,-576.59230923,0.00021715,2]
[367061071,1750642237980,-518.61722762,0.00021715,2]
[367061072,1750642237990,-474.26978054,0.00021715,2]
[367061073,1750642238001,-19837.67527529,0.00021716,2]
[367061074,1750642238012,-385.493,0.00021717,2]
[367061075,1750642238023,-1432.25673849,0.00021817,2]
[367061076,1750642238033,-248.18012282,0.00021817,2]
[367061077,1750642238042,-2449.51671508,0.000219,6]
[367061078,1750642238051,-300.0,0.00021906,2]
[367061079,1750642238061,-300.0,0.00021906,2]
[367061080,1750642238070,-1200.0,0.00021906,2]
[367061081,1750642238080,-1072.19,0.00021907,3]
[367061082,1750642238089,-536.09,0.00021907,3]
[367061083,1750642238098,-268.05,0.00021907,3]
[367061084,1750642238107,-804.17,0.00021907,3]
[367061085,1750642238117,-1679.18,0.00021907,10]
[367061086,1750642238126,-500.0,0.00021916,7]
[367061087,1750642238135,-607.90134864,0.00021916,2]
[367061088,1750642238146,-239.21,0.00021916,2]
[367061089,1750642238155,-460.0,0.00021917,2]
[367061090,1750642238165,-460.0,0.00021917,2]
[367061091,1750642238175,-460.0,0.00021917,2]
[367061092,1750642238184,-460.0,0.00021917,2]
[367061093,1750642238193,-460.0,0.00021917,2]
[367061094,1750642238202,-879.57,0.00021917,2]
[367061095,1750642238211,-879.57,0.00021917,2]
[367061096,1750642238221,-879.57,0.00021917,2]
[367061097,1750642238230,-879.57,0.00021917,2]
[367061098,1750642238239,-879.57,0.00021917,2]
[367061099,1750642238249,-879.63900909,0.00021917,2]
[367061100,1750642238263,-460.0,0.00021917,2]
[367061101,1750642238278,-460.0,0.00021917,2]
[367061102,1750642238292,-521.44255781,0.00021917,2]
[367061103,1750642238305,-306.47538347,0.00021917,2]
[367061104,1750642238315,-460.0,0.00021917,2]
[367061105,1750642238329,-432.24299732,0.00021917,2]
[367061106,1750642238342,-460.0,0.00021917,2]
[367061107,1750642238355,-460.0,0.00021917,2]
[367061108,1750642238369,-731.05,0.00021917,2]
[367061109,1750642238381,-460.0,0.00021917,2]
[367061110,1750642238394,-460.0,0.00021917,2]
[367061111,1750642238408,-423.08028818,0.00021917,2]
[367061112,1750642238420,-460.0,0.00021917,2]
[367061113,1750642238432,-460.0,0.00021917,2]
[367061114,1750642238444,-809.27,0.00021917,2]
[367061115,1750642238457,-559.91,0.00021917,2]
[367061116,1750642238470,-460.0,0.00021917,2]
[367061118,1750642238484,-313.85409397,0.00021917,2]
[367061119,1750642238496,-460.0,0.00021917,2]
[367061120,1750642238507,-460.0,0.00021917,2]
[367061121,1750642238519,-460.0,0.00021917,2]
[367061122,1750642238531,-460.0,0.00021917,2]
[367061123,1750642238544,-460.0,0.00021917,2]
[367061124,1750642238558,-460.0,0.00021917,2]
[367061125,1750642238569,-460.0,0.00021917,2]
[367061126,1750642238582,-460.0,0.00021917,2]
[367061127,1750642238596,-460.0,0.00021917,2]
[367061128,1750642238610,-460.0,0.00021917,2]
[367061129,1750642238622,-460.0,0.00021917,2]
[367061130,1750642238632,-274.16649072,0.00021917,2]
[367061131,1750642238642,-460.0,0.00021917,2]
[367061132,1750642238653,-460.0,0.00021917,2]
[367061133,1750642238665,-460.0,0.00021917,2]
[367061134,1750642238681,-377.23246705,0.00021917,2]
[367061135,1750642238693,-460.0,0.00021917,2]
[367061136,1750642238704,-431.91446373,0.00021917,2]
[367061137,1750642238717,-460.0,0.00021917,2]
[367061138,1750642238729,-460.0,0.00021917,2]
[367061139,1750642238742,-460.0,0.00021917,2]
[367061140,1750642238752,-460.0,0.00021917,2]
[367061141,1750642238763,-460.0,0.00021917,2]
[367061142,1750642238775,-460.0,0.00021917,2]
[367061143,1750642238788,-572.43127104,0.00021917,2]
[367061144,1750642238803,-460.0,0.00021917,2]
[367061145,1750642238815,-460.0,0.00021917,2]
[367061146,1750642238826,-460.0,0.00021917,2]
[367061147,1750642238838,-460.0,0.00021917,2]
[367061148,1750642238851,-460.0,0.00021917,2]
[367061149,1750642238863,-903.74,0.00021917,2]
[367061150,1750642238875,-460.0,0.00021917,2]
[367061151,1750642238888,-460.0,0.00021917,2]
[367061152,1750642238899,-460.0,0.00021917,2]
[367061153,1750642238911,-460.0,0.00021917,2]
[367061154,1750642238922,-460.0,0.00021917,2]
[367061155,1750642238939,-460.0,0.00021917,2]
[367061156,1750642238950,-460.0,0.00021917,2]
[367061157,1750642238961,-460.0,0.00021917,2]
[367061158,1750642238972,-460.0,0.00021917,2]
[367061159,1750642238984,-460.0,0.00021917,2]
[367061160,1750642238995,-381.9588752,0.00021917,2]
[367061161,1750642239008,-460.0,0.00021917,2]
[367061162,1750642239020,-460.0,0.00021917,2]
[367061163,1750642239031,-460.0,0.00021917,2]
[367061164,1750642239044,-460.0,0.00021917,2]
[367061165,1750642239056,-515.57852443,0.00021917,2]
[367061166,1750642239068,-460.0,0.00021917,2]
[367061167,1750642239080,-346.6904715,0.00021917,2]
[367061168,1750642239101,-460.0,0.00021917,2]
[367061169,1750642239112,-460.0,0.00021917,2]
[367061170,1750642239124,-460.0,0.00021917,2]
[367061171,1750642239136,-460.0,0.00021917,2]
[367061172,1750642239151,-460.0,0.00021917,2]
[367061173,1750642239163,-460.0,0.00021917,2]
[367061174,1750642239175,-460.0,0.00021917,2]
[367061175,1750642239188,-460.0,0.00021917,2]
[367061176,1750642239200,-460.0,0.00021917,2]
[367061177,1750642239213,-460.0,0.00021917,2]
[367061178,1750642239234,-460.0,0.00021917,2]
[367061179,1750642239245,-460.0,0.00021917,2]
[367061180,1750642239257,-460.0,0.00021917,2]
[367061181,1750642239269,-460.0,0.00021917,2]
[367061182,1750642239284,-460.0,0.00021917,2]
[367061183,1750642239299,-460.0,0.00021917,2]
[367061184,1750642239310,-460.0,0.00021917,2]
[367061185,1750642239323,-460.0,0.00021917,2]
[367061186,1750642239336,-460.0,0.00021917,2]
[367061187,1750642239348,-486.88,0.00021917,2]
[367061188,1750642239360,-460.0,0.00021917,2]
[367061189,1750642239371,-460.0,0.00021917,2]
[367061190,1750642239383,-460.0,0.00021917,2]
[367061191,1750642239396,-460.0,0.00021917,2]
[367061192,1750642239407,-460.0,0.00021917,2]
[367061193,1750642239419,-460.0,0.00021917,2]
[367061194,1750642239430,-460.0,0.00021917,2]
[367061195,1750642239442,-732.42,0.00021917,2]
[367061196,1750642239454,-588.05506252,0.00021917,2]
[367061197,1750642239465,-460.0,0.00021917,2]
[367061198,1750642239477,-460.0,0.00021917,2]
[367061199,1750642239489,-460.0,0.00021917,2]
[367061200,1750642239500,-460.0,0.00021917,2]
[367061201,1750642239512,-562.89,0.00021917,2]
[367061202,1750642239524,-596.66,0.00021917,2]
[367061203,1750642239536,-460.0,0.00021917,2]
[367061204,1750642239548,-460.0,0.00021917,2]
[367061205,1750642239559,-460.0,0.00021917,2]
[367061206,1750642239570,-460.0,0.00021917,2]
[367061207,1750642239582,-460.0,0.00021917,2]
[367061208,1750642239593,-460.0,0.00021917,2]
[367061209,1750642239605,-460.0,0.00021917,2]
[367061210,1750642239617,-460.0,0.00021917,2]
[367061211,1750642239629,-460.0,0.00021917,2]
[367061212,1750642239640,-460.0,0.00021917,2]
[367061213,1750642239651,-460.0,0.00021917,2]
[367061214,1750642239663,-460.0,0.00021917,2]
[367061215,1750642239674,-460.0,0.00021917,2]
[367061216,1750642239686,-460.0,0.00021917,2]
[367061217,1750642239698,-460.0,0.00021917,2]
[367061218,1750642239710,-460.0,0.00021917,2]
[367061219,1750642239722,-460.0,0.00021917,2]
[367061220,1750642239734,-319.84777633,0.00021917,2]
[367061221,1750642239746,-460.0,0.00021917,2]
[367061222,1750642239758,-460.0,0.00021917,2]
[367061223,1750642239770,-460.0,0.00021917,2]
[367061224,1750642239781,-460.0,0.00021917,2]
[367061225,1750642239792,-460.0,0.00021917,2]
[367061226,1750642239804,-460.0,0.00021917,2]
[367061227,1750642239816,-460.0,0.00021917,2]
[367061228,1750642239827,-460.0,0.00021917,2]
[367061229,1750642239839,-460.0,0.00021917,2]
[367061230,1750642239850,-187.65336621,0.00021917,2]
[367061231,1750642239862,-460.0,0.00021917,2]
[367061232,1750642239873,-460.0,0.00021917,2]
[367061233,1750642239885,-460.0,0.00021917,2]
[367061234,1750642239900,-633.72,0.00021917,2]
[367061235,1750642239913,-460.0,0.00021917,2]
[367061236,1750642239925,-460.0,0.00021917,2]
[367061237,1750642239943,-311.71123351,0.00021917,2]
[367061238,1750642239955,-460.0,0.00021917,2]
[367061239,1750642239967,-460.0,0.00021917,2]
[367061240,1750642239980,-460.0,0.00021917,2]
[367061241,1750642239991,-460.0,0.00021917,2]
[367061242,1750642240003,-460.0,0.00021917,2]
[367061243,1750642240015,-808.78,0.00021917,2]
[367061244,1750642240026,-460.0,0.00021917,2]
[367061245,1750642240038,-460.0,0.00021917,2]
[367061246,1750642240049,-1261.61,0.00021917,2]
[367061248,1750642240061,-460.0,0.00021917,2]
[367061250,1750642240072,-460.0,0.00021917,2]
[367061251,1750642240083,-460.0,0.00021917,2]
[367061252,1750642240095,-443.01279979,0.00021917,2]
[367061253,1750642240106,-460.0,0.00021917,2]
[367061254,1750642240118,-460.0,0.00021917,2]
[367061255,1750642240130,-460.0,0.00021917,2]
[367061256,1750642240144,-460.0,0.00021917,2]
[367061257,1750642240156,-1086.35,0.00021917,2]
[367061258,1750642240167,-382.67804461,0.00021917,2]
[367061259,1750642240178,-835.74,0.00021917,2]
[367061260,1750642240189,-571.34,0.00021917,2]
[367061261,1750642240200,-460.0,0.00021917,2]
[367061262,1750642240212,-1369.79,0.00021917,2]
[367061263,1750642240224,-460.0,0.00021917,2]
[367061264,1750642240236,-598.2,0.00021917,2]
[367061265,1750642240248,-481.47,0.00021917,2]
[367061266,1750642240258,-1390.9,0.00021917,2]
[367061267,1750642240268,-460.0,0.00021917,2]
[367061268,1750642240278,-460.0,0.00021917,2]
[367061269,1750642240294,-460.0,0.00021917,2]
[367061270,1750642240303,-500.0,0.00021917,2]
[367061271,1750642240313,-500.0,0.00021917,2]
[367061272,1750642240322,-460.0,0.00021917,2]
[367061273,1750642240331,-500.0,0.00021917,2]
[367061274,1750642240340,-460.0,0.00021917,2]
[367061275,1750642240350,-606.94885796,0.00021917,2]
[367061276,1750642240360,-460.0,0.00021917,2]
[367061277,1750642240369,-460.0,0.00021917,2]
[367061278,1750642240379,-460.0,0.00021917,2]
[367061279,1750642240713,-905.34,0.00021917,2]
[367061280,1750642240729,-460.0,0.00021917,2]
[367061281,1750642240739,-249.81329423,0.00021917,2]
[367061282,1750642240749,-460.0,0.00021917,2]
[367061283,1750642240759,-629.64,0.00021917,2]
[367061284,1750642240768,-460.0,0.00021917,2]
[367061285,1750642240777,-1236.73,0.00021917,2]
[367061286,1750642240786,-460.0,0.00021917,2]
[367061287,1750642240795,-460.0,0.00021917,2]
[367061288,1750642240804,-460.0,0.00021917,2]
[367061289,1750642240813,-460.0,0.00021917,2]
[367061290,1750642240822,-544.4,0.00021917,2]
[367061291,1750642240831,-460.0,0.00021917,2]
[367061292,1750642240840,-460.0,0.00021917,2]
[367061293,1750642240849,-460.0,0.00021917,2]
[367061294,1750642240858,-460.0,0.00021917,2]
[367061295,1750642240867,-460.0,0.00021917,2]
[367061296,1750642240876,-460.0,0.00021917,2]
[367061297,1750642240885,-460.0,0.00021917,2]
[367061298,1750642240898,-460.0,0.00021917,2]
[367061299,1750642240906,-460.0,0.00021917,2]
[367061300,1750642240916,-460.0,0.00021917,2]
[367061301,1750642240926,-696.5,0.00021917,2]
[367061302,1750642240938,-460.0,0.00021917,2]
[367061303,1750642240947,-460.0,0.00021917,2]
[367061304,1750642240957,-460.0,0.00021917,2]
[367061305,1750642240966,-460.0,0.00021917,2]
[367061306,1750642240975,-1000.0,0.00021917,2]
[367061307,1750642240984,-460.0,0.00021917,2]
[367061308,1750642240994,-460.0,0.00021917,2]
[367061309,1750642241004,-460.0,0.00021917,2]
[367061310,1750642241014,-460.0,0.00021917,2]
[367061311,1750642241024,-460.0,0.00021917,2]
[367061312,1750642241034,-460.0,0.00021917,2]
[367061313,1750642241045,-2219.58,0.00021917,2]
[367061314,1750642241054,-460.0,0.00021917,2]
[367061315,1750642241064,-500.0,0.00021917,2]
[367061316,1750642241073,-157.31418918,0.00021917,2]
[367061317,1750642241083,-460.0,0.00021917,2]
[367061318,1750642241092,-460.0,0.00021917,2]
[367061319,1750642241101,-460.0,0.00021917,2]
[367061320,1750642241111,-592.51,0.00021917,2]
[367061321,1750642241120,-460.0,0.00021917,2]
[367061322,1750642241129,-1067.12,0.00021917,2]
[367061323,1750642241139,-927.17,0.00021917,2]
[367061324,1750642241151,-460.0,0.00021917,2]
[367061325,1750642241160,-460.0,0.00021917,2]
[367061326,1750642241169,-331.04754791,0.00021917,2]
[367061327,1750642241179,-770.66,0.00021917,2]
[367061328,1750642241188,-760.26,0.00021917,2]
[367061329,1750642241197,-2240.28,0.00021917,2]
[367061330,1750642241207,-460.0,0.00021917,2]
[367061331,1750642241216,-460.0,0.00021917,2]
[367061332,1750642241226,-3310.79,0.00021917,2]
[367061333,1750642241236,-460.0,0.00021917,2]
[367061334,1750642241245,-460.0,0.00021917,2]
[367061335,1750642241255,-361.00997491,0.00021917,2]
[367061336,1750642241265,-460.0,0.00021917,2]
[367061337,1750642241274,-460.0,0.00021917,2]
[367061338,1750642241283,-847.98,0.00021917,2]
[367061339,1750642241293,-460.0,0.00021917,2]
[367061340,1750642241303,-460.0,0.00021917,2]
[367061341,1750642241314,-460.0,0.00021917,2]
[367061342,1750642241324,-1520.06,0.00021917,2]
[367061343,1750642241333,-460.0,0.00021917,2]
[367061344,1750642241343,-523.46,0.00021917,2]
[367061345,1750642241352,-1392.35,0.00021917,2]
[367061346,1750642241361,-460.0,0.00021917,2]
[367061347,1750642241370,-460.0,0.00021917,2]
[367061348,1750642241380,-460.0,0.00021917,2]
[367061349,1750642241392,-460.0,0.00021917,2]
[367061350,1750642241401,-460.0,0.00021917,2]
[367061351,1750642241410,-460.0,0.00021917,2]
[367061352,1750642241419,-810.17,0.00021917,2]
[367061353,1750642241429,-460.0,0.00021917,2]
[367061354,1750642241438,-756.99,0.00021917,2]
[367061355,1750642241447,-460.0,0.00021917,2]
[367061356,1750642241456,-460.0,0.00021917,2]
[367061357,1750642241466,-460.0,0.00021917,2]
[367061358,1750642241475,-558.99,0.00021917,2]
[367061359,1750642241484,-460.0,0.00021917,2]
[367061360,1750642241493,-460.0,0.00021917,2]
[367061361,1750642241502,-595.5,0.00021917,2]
[367061362,1750642241511,-460.0,0.00021917,2]
[367061363,1750642241520,-460.0,0.00021917,2]
[367061364,1750642241529,-448.50286984,0.00021917,2]
[367061365,1750642241538,-460.0,0.00021917,2]
[367061366,1750642241547,-460.0,0.00021917,2]
[367061367,1750642241556,-460.0,0.00021917,2]
[367061368,1750642241566,-460.0,0.00021917,2]
[367061369,1750642241575,-1285.03,0.00021917,2]
[367061370,1750642241584,-460.0,0.00021917,2]
[367061371,1750642241594,-460.0,0.00021917,2]
[367061372,1750642241603,-460.0,0.00021917,2]
[367061373,1750642241613,-498.08,0.00021917,2]
[367061374,1750642241622,-460.0,0.00021917,2]
[367061375,1750642241632,-460.0,0.00021917,2]
[367061376,1750642241643,-460.0,0.00021917,2]
[367061377,1750642241652,-1799.46,0.00021917,2]
[367061378,1750642241662,-460.0,0.00021917,2]
[367061379,1750642241672,-565.2,0.00021917,2]
[367061380,1750642241681,-972.75,0.00021917,2]
[367061381,1750642241691,-460.0,0.00021917,2]
[367061382,1750642241700,-460.0,0.00021917,2]
[367061383,1750642241708,-794.23,0.00021917,2]
[367061384,1750642241717,-460.0,0.00021917,2]
[367061385,1750642241726,-402.0110064,0.00021917,2]
[367061386,1750642241737,-460.0,0.00021917,2]
[367061387,1750642241747,-460.78,0.00021917,2]
[367061388,1750642241757,-617.59,0.00021917,2]
[367061389,1750642241766,-460.0,0.00021917,2]
[367061390,1750642241775,-460.0,0.00021917,2]
[367061391,1750642241784,-460.0,0.00021917,2]
[367061392,1750642241793,-460.0,0.00021917,2]
[367061393,1750642241802,-460.0,0.00021917,2]
[367061394,1750642241811,-460.0,0.00021917,2]
[367061395,1750642241821,-508.42,0.00021917,2]
[367061396,1750642241830,-280.76951866,0.00021917,2]
[367061397,1750642241839,-460.0,0.00021917,2]
[367061398,1750642241848,-460.0,0.00021917,2]
[367061399,1750642241857,-500.0,0.00021917,2]
[367061400,1750642241866,-500.0,0.00021917,2]
[367061401,1750642241875,-460.0,0.00021917,2]
[367061402,1750642241885,-500.0,0.00021917,2]
[367061403,1750642241896,-500.0,0.00021917,2]
[367061404,1750642241905,-460.0,0.00021917,2]
[367061405,1750642241914,-460.0,0.00021917,2]
[367061406,1750642241923,-460.0,0.00021917,2]
[367061407,1750642241936,-460.51,0.00021917,2]
[367061408,1750642241945,-556.65,0.00021917,2]
[367061409,1750642241954,-460.0,0.00021917,2]
[367061410,1750642241963,-460.0,0.00021917,2]
[367061411,1750642241973,-1655.41,0.00021917,2]
[367061412,1750642241983,-460.0,0.00021917,2]
[367061413,1750642241992,-460.0,0.00021917,2]
[367061414,1750642242001,-460.0,0.00021917,2]
[367061415,1750642242010,-460.0,0.00021917,2]
[367061416,1750642242020,-460.0,0.00021917,2]
[367061417,1750642242029,-981.66,0.00021917,2]
[367061418,1750642242038,-460.0,0.00021917,2]
[367061419,1750642242048,-516.32,0.00021917,2]
[367061420,1750642242057,-516.32,0.00021917,2]
[367061421,1750642242066,-516.32,0.00021917,2]
[367061422,1750642242075,-516.32,0.00021917,2]
[367061423,1750642242084,-460.0,0.00021917,2]
[367061424,1750642242094,-516.32,0.00021917,2]
[367061425,1750642242103,-516.32,0.00021917,2]
[367061426,1750642242112,-516.32,0.00021917,2]
[367061427,1750642242121,-516.32,0.00021917,2]
[367061428,1750642242131,-516.32,0.00021917,2]
[367061429,1750642242140,-460.0,0.00021917,2]
[367061430,1750642242150,-516.32,0.00021917,2]
[367061431,1750642242159,-460.0,0.00021917,2]
[367061432,1750642242168,-516.32,0.00021917,2]
[367061433,1750642242177,-460.0,0.00021917,2]
[367061434,1750642242186,-516.32,0.00021917,2]
[367061435,1750642242195,-516.32,0.00021917,2]
[367061436,1750642242204,-460.0,0.00021917,2]
[367061437,1750642242213,-516.32,0.00021917,2]
[367061438,1750642242222,-516.32,0.00021917,2]
[367061439,1750642242231,-516.32,0.00021917,2]
[367061440,1750642242240,-460.0,0.00021917,2]
[367061441,1750642242249,-516.32,0.00021917,2]
[367061442,1750642242258,-516.32,0.00021917,2]
[367061443,1750642242267,-1222.24,0.00021917,2]
[367061444,1750642242276,-460.0,0.00021917,2]
[367061445,1750642242286,-580.83,0.00021917,2]
[367061446,1750642242294,-460.0,0.00021917,2]
[367061447,1750642242303,-460.0,0.00021917,2]
[367061448,1750642242312,-464.4,0.00021917,2]
[367061449,1750642242321,-460.0,0.00021917,2]
[367061450,1750642242330,-460.0,0.00021917,2]
[367061451,1750642242339,-498.37210236,0.00021917,2]
[367061452,1750642242347,-460.0,0.00021917,2]
[367061453,1750642242356,-460.0,0.00021917,2]
[367061454,1750642242366,-542.86,0.00021917,2]
[367061455,1750642242375,-460.0,0.00021917,2]
[367061456,1750642242384,-1415.01,0.00021917,2]
[367061457,1750642242394,-460.0,0.00021917,2]
[367061458,1750642242402,-460.0,0.00021917,2]
[367061459,1750642242411,-460.0,0.00021917,2]
[367061460,1750642242420,-460.0,0.00021917,2]
[367061461,1750642242430,-405.44789143,0.00021917,2]
[367061462,1750642242439,-460.0,0.00021917,2]
[367061463,1750642242448,-460.0,0.00021917,2]
[367061465,1750642242457,-460.0,0.00021917,2]
[367061467,1750642242466,-460.0,0.00021917,2]
[367061469,1750642242475,-680.66,0.00021917,2]
[367061470,1750642242484,-460.0,0.00021917,2]
[367061471,1750642242493,-460.0,0.00021917,2]
[367061472,1750642242503,-460.0,0.00021917,2]
[367061473,1750642242511,-1192.72,0.00021917,2]
[367061474,1750642242521,-460.0,0.00021917,2]
[367061475,1750642242530,-460.0,0.00021917,2]
[367061476,1750642242539,-460.0,0.00021917,2]
[367061477,1750642242548,-460.0,0.00021917,2]
[367061478,1750642242558,-1636.9,0.00021917,2]
[367061479,1750642242567,-460.0,0.00021917,2]
[367061480,1750642242577,-460.0,0.00021917,2]
[367061481,1750642242587,-460.0,0.00021917,2]
[367061482,1750642242596,-460.0,0.00021917,2]
[367061484,1750642242606,-460.0,0.00021917,2]
[367061486,1750642242615,-460.0,0.00021917,2]
[367061488,1750642242624,-460.0,0.00021917,2]
[367061489,1750642242634,-460.0,0.00021917,2]
[367061490,1750642242644,-460.0,0.00021917,2]
[367061491,1750642242653,-460.0,0.00021917,2]
[367061492,1750642242662,-1909.06,0.00021917,2]
[367061493,1750642242672,-406.47850141,0.00021917,2]